fUSD/lending_fUSD_20240317
["ID","MTS","AMOUNT","RATE_DAILY","PERIOD"]
[319288800,1710640232489,-324.73922999,0.00014907,2]
[319288801,1710640232498,-150.96906887,0.00014907,2]
[319288802,1710640232507,-150.96906865,0.00014915,2]
[319288803,1710640232516,-150.96906865,0.00014924,2]
[319288804,1710640232525,-150.96906865,0.00014932,2]
[319288805,1710640232534,-150.96906865,0.0001494,2]
[319288806,1710640232544,-150.96906865,0.00014949,2]
[319288807,1710640232553,-2919.49,0.00014953,2]
[319288808,1710640232564,-150.96906865,0.00014957,2]
[319288809,1710640232573,-150.96906865,0.00014965,2]
[319288810,1710640232582,-150.96906865,0.00014974,2]
[319288811,1710640232591,-150.96906865,0.00014982,2]
[319288812,1710640232600,-150.96906865,0.00014991,2]
[319288813,1710640232609,-150.96906865,0.00014999,2]
[319288814,1710640232618,-5218.08275286,0.00015,2]
[319288815,1710640232628,-2000.0,0.00015,2]
[319288816,1710640232637,-2550.0,0.00015,4]
[319288817,1710640232646,-5000.0,0.00015,2]
[319288818,1710640232657,-432418.890525,0.00015005,2]
[319288819,1710640232665,-2919.49,0.00015006,2]
[319288820,1710640232675,-150.96906865,0.00015007,2]
[319288821,1710640232684,-150.96906865,0.00015016,2]
[319288822,1710640232693,-150.96906865,0.00015024,2]
[319288823,1710640232702,-252.23555303,0.00015028,2]
[319288824,1710640232711,-178.27,0.00015028,2]
[319288825,1710640232720,-324.73922996,0.0001503,2]
[319288826,1710640232729,-150.96906865,0.00015032,2]
[319288827,1710640232739,-150.96906865,0.00015041,2]
[319288828,1710640232748,-1330.17739867,0.00015048,2]
[319288829,1710640232757,-150.96906865,0.00015049,2]
[319288830,1710640232766,-150.96906865,0.00015057,2]
[319288831,1710640232775,-250.0,0.00015059,2]
[319288832,1710640232784,-2919.49,0.0001506,2]
[319288833,1710640232793,-214.12142,0.00015064,2]
[319288834,1710640232802,-307.247864,0.00015064,2]
[319288835,1710640232810,-205.892382,0.00015064,2]
[319288836,1710640232821,-150.96906865,0.00015066,2]
[319288837,1710640232831,-150.32,0.00015068,2]
[319288838,1710640232840,-150.96906865,0.00015074,2]
[319288839,1710640232849,-150.96906865,0.00015082,2]
[319288840,1710640232858,-150.96906865,0.00015091,2]
[319288841,1710640232871,-150.96906865,0.00015099,2]
[319288842,1710640232880,-172.07342981,0.000151,2]
[319288843,1710640232888,-172.07342978,0.000151,2]
[319288844,1710640232898,-172.07342978,0.000151,2]
[319288845,1710640232908,-172.07342978,0.000151,2]
[319288846,1710640232918,-150.96906865,0.00015108,2]
[319288847,1710640232927,-2919.49,0.00015113,2]
[319288848,1710640232936,-150.96906865,0.00015116,2]
[319288849,1710640232945,-150.96906865,0.00015124,2]
[319288850,1710640232955,-150.96906865,0.00015133,2]
[319288851,1710640232964,-150.96906865,0.00015141,2]
[319288852,1710640232973,-150.96906865,0.00015149,2]
[319288853,1710640232983,-324.73922996,0.00015153,2]
[319288854,1710640232992,-150.96906865,0.00015158,2]
[319288855,1710640233001,-2919.49,0.00015166,2]
[319288856,1710640233010,-150.96906865,0.00015166,2]
[319288857,1710640233019,-150.96906865,0.00015174,2]
[319288858,1710640233029,-384.0,0.00015178,2]
[319288859,1710640233038,-150.96906865,0.00015183,2]
[319288860,1710640233047,-150.96906865,0.00015191,2]
[319288861,1710640233057,-150.96906865,0.00015199,2]
[319288862,1710640233066,-3966.0,0.000152,3]
[319288863,1710640233075,-150.96906865,0.00015208,2]
[319288864,1710640233084,-150.96906865,0.00015216,2]
[319288865,1710640233093,-2919.49,0.00015219,2]
[319288866,1710640233102,-1330.17739867,0.00015224,2]
[319288867,1710640233111,-150.96906865,0.00015225,2]
[319288868,1710640233123,-258.0,0.0001523,2]
[319288869,1710640233132,-486.0,0.0001523,2]
[319288870,1710640233141,-150.96906865,0.00015233,2]
[319288871,1710640233150,-539.91480503,0.00015233,2]
[319288872,1710640233166,-539.91480503,0.00015233,2]
[319288873,1710640233175,-539.91480503,0.00015233,2]
[319288874,1710640233184,-539.91480503,0.00015233,2]
[319288875,1710640233193,-539.91480503,0.00015233,2]
[319288876,1710640233202,-169.10179795,0.00015233,2]
[319288877,1710640233211,-169.10179793,0.00015233,2]
[319288878,1710640233221,-150.96906865,0.00015241,2]
[319288879,1710640233230,-4628.5997,0.00015242,2]
[319288880,1710640233240,-258.927893,0.00015243,2]
[319288881,1710640233249,-214.12142,0.00015248,2]
[319288882,1710640233259,-307.247864,0.00015248,2]
[319288883,1710640233268,-205.892382,0.00015248,2]
[319288884,1710640233277,-150.96906865,0.0001525,2]
[319288885,1710640233286,-150.96906865,0.00015258,2]
[319288886,1710640233297,-616.0,0.00015261,2]
[319288887,1710640233307,-200.0,0.00015265,2]
[319288888,1710640233317,-800.0,0.00015265,2]
[319288889,1710640233326,-200.0,0.00015265,2]
[319288890,1710640233335,-500.0,0.00015265,2]
[319288891,1710640233345,-200.0,0.00015265,2]
[319288892,1710640233354,-150.96906865,0.00015266,2]
[319288893,1710640233362,-390.46388567,0.00015268,2]
[319288894,1710640233372,-2919.49,0.00015272,2]
[319288895,1710640233381,-150.96906865,0.00015275,2]
[319288896,1710640233389,-324.73922996,0.00015276,2]
[319288897,1710640233398,-150.96906865,0.00015283,2]
[319288898,1710640233409,-630.0,0.00015288,2]
[319288899,1710640233418,-150.96906865,0.00015291,2]
[319288900,1710640233427,-2448.8086,0.00015298,2]
[319288901,1710640233437,-1000.0,0.00015299,2]
[319288902,1710640233446,-150.96906865,0.000153,2]
[319288903,1710640233455,-273.44526485,0.000153,2]
[319288904,1710640233465,-23785.704053,0.000153,2]
[319288905,1710640233475,-244.46271461,0.000153,2]
[319288906,1710640233484,-244.46271461,0.000153,2]
[319288907,1710640233493,-244.46271461,0.000153,2]
[319288908,1710640233502,-244.46271461,0.000153,2]
[319288909,1710640233512,-244.46271461,0.000153,2]
[319288910,1710640233520,-244.46271461,0.000153,2]
[319288911,1710640233529,-244.46271461,0.000153,2]
[319288912,1710640233538,-244.46271461,0.000153,2]
[319288913,1710640233547,-244.46271461,0.000153,2]
[319288914,1710640233557,-244.46271461,0.000153,2]
[319288915,1710640233566,-244.46271461,0.000153,2]
[319288916,1710640233575,-244.46271461,0.000153,2]
[319288917,1710640233584,-244.46271461,0.000153,2]
[319288918,1710640233593,-244.46271461,0.000153,2]
[319288919,1710640233602,-244.46271461,0.000153,2]
[319288920,1710640233611,-244.46271461,0.000153,2]
[319288921,1710640233620,-244.46271461,0.000153,2]
[319288922,1710640233629,-244.46271461,0.000153,2]
[319288923,1710640233638,-244.46271461,0.000153,2]
[319288924,1710640233647,-244.46271461,0.000153,2]
[319288925,1710640233660,-244.46271461,0.000153,2]
[319288926,1710640233669,-244.46271461,0.000153,2]
[319288927,1710640233678,-244.46271461,0.000153,2]
[319288928,1710640233687,-244.46271461,0.000153,2]
[319288929,1710640233696,-244.46271461,0.000153,2]
[319288930,1710640233705,-244.46271461,0.000153,2]
[319288931,1710640233714,-244.46271461,0.000153,2]
[319288932,1710640233723,-244.46271461,0.000153,2]
[319288933,1710640233734,-244.46271461,0.000153,2]
[319288934,1710640233747,-244.46271461,0.000153,2]
[319288935,1710640233760,-150.96906865,0.00015308,2]
[319288936,1710640233771,-150.96906865,0.00015316,2]
[319288937,1710640233782,-150.96906865,0.00015325,2]
[319288938,1710640233794,-273.44526484,0.00015325,2]
[319288939,1710640233805,-155.02583989,0.00015325,2]
[319288940,1710640233816,-2919.49,0.00015325,2]
[319288941,1710640233829,-150.96906865,0.00015333,2]
[319288942,1710640233839,-150.96906865,0.00015342,2]
[319288943,1710640233849,-1092.21301392,0.00015342,2]
[319288944,1710640233860,-500.0,0.00015342,2]
[319288945,1710640233871,-501.15029456,0.00015342,2]
[319288946,1710640233883,-500.0,0.00015342,2]
[319288947,1710640233894,-501.1871556,0.00015342,2]
[319288948,1710640233907,-501.67689993,0.00015342,2]
[319288949,1710640233919,-500.25180098,0.00015342,2]
[319288950,1710640233929,-500.34179101,0.00015342,2]
[319288951,1710640233940,-500.0,0.00015342,2]
[319288952,1710640233951,-500.0,0.00015342,2]
[319288953,1710640233962,-510.46410936,0.00015342,2]
[319288954,1710640233972,-501.17851218,0.00015342,2]
[319288955,1710640233983,-500.0,0.00015342,2]
[319288956,1710640233994,-500.37575537,0.00015342,2]
[319288957,1710640234004,-500.94416922,0.00015342,2]
[319288958,1710640234014,-371.27873866,0.00015342,2]
[319288959,1710640234023,-500.67688721,0.00015342,2]
[319288960,1710640234033,-501.30869762,0.00015342,2]
[319288961,1710640234044,-500.0,0.00015342,2]
[319288962,1710640234055,-500.0,0.00015342,2]
[319288963,1710640234065,-500.0,0.00015342,2]
[319288964,1710640234075,-500.0,0.00015342,2]
[319288965,1710640234086,-507.98454349,0.00015342,2]
[319288966,1710640234097,-500.0,0.00015342,2]
[319288967,1710640234107,-500.0,0.00015342,2]
[319288968,1710640234118,-510.2450451,0.00015342,2]
[319288969,1710640234128,-500.0,0.00015342,2]
[319288970,1710640234138,-500.0,0.00015342,2]
[319288971,1710640234150,-500.0,0.00015342,2]
[319288972,1710640234165,-503.48890304,0.00015342,2]
[319288973,1710640234176,-500.0,0.00015342,2]
[319288974,1710640234186,-500.0,0.00015342,2]
[319288975,1710640234195,-505.231148,0.00015342,2]
[319288976,1710640234205,-508.15058744,0.00015342,2]
[319288977,1710640234214,-593.86225357,0.00015342,2]
[319288978,1710640234224,-247.74538731,0.00015342,2]
[319288979,1710640234237,-506.36375838,0.00015342,2]
[319288980,1710640234248,-500.88999881,0.00015342,2]
[319288981,1710640234258,-503.16235933,0.00015342,2]
[319288982,1710640234269,-502.1646347,0.00015342,2]
[319288983,1710640234280,-265.20649704,0.00015342,2]
[319288984,1710640234293,-500.0,0.00015342,2]
[319288985,1710640234303,-516.68001481,0.00015342,2]
[319288986,1710640234314,-500.0,0.00015342,2]
[319288987,1710640234324,-500.0,0.00015342,2]
[319288988,1710640234334,-501.92631285,0.00015342,2]
[319288989,1710640234345,-502.20430242,0.00015342,2]
[319288990,1710640234356,-500.0,0.00015342,2]
[319288991,1710640234366,-504.35432726,0.00015342,2]
[319288992,1710640234378,-504.93574015,0.00015342,2]
[319288993,1710640234389,-504.74787679,0.00015342,2]
[319288994,1710640234400,-500.0,0.00015342,2]
[319288995,1710640234414,-503.3282922,0.00015342,2]
[319288996,1710640234425,-500.0,0.00015342,2]
[319288997,1710640234437,-289.23419989,0.00015342,2]
[319288998,1710640234449,-501.7194664,0.00015342,2]
[319288999,1710640234460,-503.07504916,0.00015342,2]
[319289000,1710640234471,-500.0,0.00015342,2]
[319289001,1710640234483,-500.0,0.00015342,2]
[319289002,1710640234494,-502.2359913,0.00015342,2]
[319289003,1710640234506,-500.0,0.00015342,2]
[319289004,1710640234516,-500.0,0.00015342,2]
[319289005,1710640234528,-503.61514439,0.00015342,2]
[319289006,1710640234539,-501.25082662,0.00015342,2]
[319289007,1710640234549,-500.37318753,0.00015342,2]
[319289008,1710640234559,-500.0,0.00015342,2]
[319289009,1710640234569,-500.0,0.00015342,2]
[319289010,1710640234578,-503.64649929,0.00015342,2]
[319289011,1710640234588,-203.51625026,0.00015342,2]
[319289012,1710640234598,-507.79203201,0.00015342,2]
[319289013,1710640234608,-503.69350903,0.00015342,2]
[319289014,1710640234618,-500.0,0.00015342,2]
[319289015,1710640234628,-509.36674466,0.00015342,2]
[319289016,1710640234639,-500.0,0.00015342,2]
[319289017,1710640234649,-519.11173851,0.00015342,2]
[319289018,1710640234662,-179.04089374,0.00015342,2]
[319289019,1710640234672,-509.86621756,0.00015342,2]
[319289020,1710640234683,-614.56877927,0.00015342,2]
[319289021,1710640234694,-500.0,0.00015342,2]
[319289022,1710640234705,-500.0,0.00015342,2]
[319289023,1710640234715,-517.8156246,0.00015342,2]
[319289024,1710640234725,-315.33012896,0.00015342,2]
[319289025,1710640234735,-500.0,0.00015342,2]
[319289026,1710640234744,-500.54294084,0.00015342,2]
[319289027,1710640234754,-529.0084767,0.00015342,2]
[319289028,1710640234764,-512.75885752,0.00015342,2]
[319289029,1710640234773,-500.0,0.00015342,2]
[319289030,1710640234783,-514.40393543,0.00015342,2]
[319289031,1710640234793,-509.93420897,0.00015342,2]
[319289032,1710640234802,-500.0,0.00015342,2]
[319289033,1710640234813,-400.51241832,0.00015342,2]
[319289034,1710640234823,-500.0,0.00015342,2]
[319289035,1710640234837,-628.11597893,0.00015342,2]
[319289036,1710640234847,-500.0,0.00015342,2]
[319289037,1710640234857,-277.08692678,0.00015342,2]
[319289038,1710640234866,-501.63506155,0.00015342,2]
[319289039,1710640234877,-519.41342771,0.00015342,2]
[319289040,1710640234887,-502.41635438,0.00015342,2]
[319289041,1710640234898,-500.0,0.00015342,2]
[319289042,1710640234910,-500.0,0.00015342,2]
[319289043,1710640234921,-162.08955253,0.00015342,2]
[319289044,1710640234931,-500.0,0.00015342,2]
[319289045,1710640234940,-500.0,0.00015342,2]
[319289046,1710640234950,-517.62514003,0.00015342,2]
[319289047,1710640234960,-500.0,0.00015342,2]
[319289048,1710640234970,-500.0,0.00015342,2]
[319289049,1710640234980,-500.0,0.00015342,2]
[319289050,1710640234990,-500.0,0.00015342,2]
[319289051,1710640235002,-613.89455218,0.00015342,2]
[319289052,1710640235012,-502.15868609,0.00015342,2]
[319289053,1710640235021,-500.0,0.00015342,2]
[319289054,1710640235031,-500.0,0.00015342,2]
[319289055,1710640235041,-532.08405183,0.00015342,2]
[319289056,1710640235051,-501.60368618,0.00015342,2]
[319289057,1710640235061,-500.0,0.00015342,2]
[319289058,1710640235072,-500.0,0.00015342,2]
[319289059,1710640235082,-500.0,0.00015342,2]
[319289060,1710640235091,-526.54595314,0.00015342,2]
[319289061,1710640235101,-500.0,0.00015342,2]
[319289062,1710640235111,-466.49285425,0.00015342,2]
[319289063,1710640235121,-512.46248664,0.00015342,2]
[319289064,1710640235131,-500.0,0.00015342,2]
[319289065,1710640235142,-532.04497808,0.00015342,2]
[319289066,1710640235151,-500.0,0.00015342,2]
[319289067,1710640235167,-500.0,0.00015342,2]
[319289068,1710640235177,-500.0,0.00015342,2]
[319289069,1710640235186,-519.12486505,0.00015342,2]
[319289070,1710640235197,-500.0,0.00015342,2]
[319289071,1710640235207,-500.0,0.00015342,2]
[319289072,1710640235217,-500.0,0.00015342,2]
[319289073,1710640235228,-500.0,0.00015342,2]
[319289074,1710640235238,-504.53894808,0.00015342,2]
[319289075,1710640235248,-500.0,0.00015342,2]
[319289076,1710640235258,-500.0,0.00015342,2]
[319289077,1710640235268,-500.0,0.00015342,2]
[319289078,1710640235278,-500.0,0.00015342,2]
[319289079,1710640235289,-500.0,0.00015342,2]
[319289080,1710640235301,-501.95903964,0.00015342,2]
[319289081,1710640235311,-514.89219022,0.00015342,2]
[319289082,1710640235322,-500.0,0.00015342,2]
[319289083,1710640235332,-500.0,0.00015342,2]
[319289084,1710640235342,-500.0,0.00015342,2]
[319289085,1710640235352,-520.58933644,0.00015342,2]
[319289086,1710640235362,-519.89787932,0.00015342,2]
[319289087,1710640235372,-506.46124065,0.00015342,2]
[319289088,1710640235383,-500.0,0.00015342,2]
[319289089,1710640235393,-500.0,0.00015342,2]
[319289090,1710640235403,-513.30391377,0.00015342,2]
[319289091,1710640235416,-500.0,0.00015342,2]
[319289092,1710640235426,-529.51363423,0.00015342,2]
[319289093,1710640235436,-500.0,0.00015342,2]
[319289094,1710640235446,-500.0,0.00015342,2]
[319289095,1710640235457,-500.0,0.00015342,2]
[319289096,1710640235467,-232.2536299,0.00015342,2]
[319289097,1710640235477,-500.0,0.00015342,2]
[319289098,1710640235487,-500.0,0.00015342,2]
[319289099,1710640235497,-500.0,0.00015342,2]
[319289100,1710640235508,-500.0,0.00015342,2]
[319289101,1710640235518,-500.0,0.00015342,2]
[319289102,1710640235529,-502.33695195,0.00015342,2]
[319289103,1710640235539,-500.0,0.00015342,2]
[319289104,1710640235550,-500.0,0.00015342,2]
[319289105,1710640235560,-508.02011392,0.00015342,2]
[319289106,1710640235571,-522.21944567,0.00015342,2]
[319289107,1710640235581,-501.57157855,0.00015342,2]
[319289108,1710640235591,-500.0,0.00015342,2]
[319289109,1710640235601,-505.65260361,0.00015342,2]
[319289110,1710640235612,-500.0,0.00015342,2]
[319289111,1710640235622,-508.70276596,0.00015342,2]
[319289112,1710640235631,-512.58435422,0.00015342,2]
[319289113,1710640235642,-2026.32142672,0.00015342,2]
[319289114,1710640235652,-500.0,0.00015342,2]
[319289115,1710640235665,-500.0,0.00015342,2]
[319289116,1710640235675,-162.29609181,0.00015342,2]
[319289117,1710640235686,-514.75898033,0.00015342,2]
[319289118,1710640235696,-507.52412668,0.00015342,2]
[319289119,1710640235706,-541.52398526,0.00015342,2]
[319289120,1710640235717,-500.0,0.00015342,2]
[319289121,1710640235727,-500.0,0.00015342,2]
[319289122,1710640235737,-500.0,0.00015342,2]
[319289123,1710640235747,-367.14166687,0.00015342,2]
[319289124,1710640235758,-500.0,0.00015342,2]
[319289125,1710640235768,-506.80094788,0.00015342,2]
[319289126,1710640235778,-500.0,0.00015342,2]
[319289127,1710640235788,-500.0,0.00015342,2]
[319289128,1710640235799,-517.82481382,0.00015342,2]
[319289129,1710640235809,-511.05437174,0.00015342,2]
[319289130,1710640235819,-500.0,0.00015342,2]
[319289131,1710640235832,-500.0,0.00015342,2]
[319289132,1710640235843,-500.0,0.00015342,2]
[319289133,1710640235853,-509.50254846,0.00015342,2]
[319289134,1710640235863,-500.0,0.00015342,2]
[319289135,1710640235873,-508.99115791,0.00015342,2]
[319289136,1710640235883,-500.0,0.00015342,2]
[319289137,1710640235893,-500.0,0.00015342,2]
[319289138,1710640235904,-500.0,0.00015342,2]
[319289139,1710640235916,-500.0,0.00015342,2]
[319289140,1710640235926,-500.0,0.00015342,2]
[319289141,1710640235936,-500.0,0.00015342,2]
[319289142,1710640235946,-500.0,0.00015342,2]
[319289143,1710640235956,-500.0,0.00015342,2]
[319289144,1710640235966,-508.60892146,0.00015342,2]
[319289145,1710640235976,-528.62381418,0.00015342,2]
[319289146,1710640235986,-500.0,0.00015342,2]
[319289147,1710640235996,-503.29607953,0.00015342,2]
[319289148,1710640236005,-500.0,0.00015342,2]
[319289149,1710640236015,-500.0,0.00015342,2]
[319289150,1710640236025,-502.59306625,0.00015342,2]
[319289151,1710640236034,-500.0,0.00015342,2]
[319289152,1710640236044,-500.0,0.00015342,2]
[319289153,1710640236054,-351.64,0.00015342,2]
[319289154,1710640236064,-500.0,0.00015342,2]
[319289155,1710640236074,-500.0,0.00015342,2]
[319289156,1710640236084,-500.0,0.00015342,2]
[319289157,1710640236094,-500.0,0.00015342,2]
[319289158,1710640236103,-506.05229937,0.00015342,2]
[319289159,1710640236113,-500.0,0.00015342,2]
[319289160,1710640236123,-500.0,0.00015342,2]
[319289161,1710640236133,-500.0,0.00015342,2]
[319289162,1710640236143,-500.0,0.00015342,2]
[319289163,1710640236153,-508.66367822,0.00015342,2]
[319289164,1710640236165,-500.0,0.00015342,2]
[319289165,1710640236176,-500.0,0.00015342,2]
[319289166,1710640236185,-500.0,0.00015342,2]
[319289167,1710640236195,-500.0,0.00015342,2]
[319289168,1710640236205,-500.0,0.00015342,2]
[319289169,1710640236216,-500.0,0.00015342,2]
[319289170,1710640236226,-500.0,0.00015342,2]
[319289171,1710640236235,-501.80486133,0.00015342,2]
[319289172,1710640236245,-500.0,0.00015342,2]
[319289173,1710640236255,-500.0,0.00015342,2]
[319289174,1710640236265,-500.0,0.00015342,2]
[319289175,1710640236275,-501.81778796,0.00015342,2]
[319289176,1710640236285,-500.0,0.00015342,2]
[319289177,1710640236295,-500.0,0.00015342,2]
[319289178,1710640236304,-520.30971505,0.00015342,2]
[319289179,1710640236314,-501.64653366,0.00015342,2]
[319289180,1710640236324,-500.0,0.00015342,2]
[319289181,1710640236333,-500.0,0.00015342,2]
[319289182,1710640236343,-500.0,0.00015342,2]
[319289183,1710640236353,-500.0,0.00015342,2]
[319289184,1710640236363,-500.0,0.00015342,2]
[319289185,1710640236374,-409.63754444,0.00015342,2]
[319289186,1710640236384,-500.0,0.00015342,2]
[319289187,1710640236393,-639.71229931,0.00015342,2]
[319289188,1710640236403,-500.0,0.00015342,2]
[319289189,1710640236417,-500.0,0.00015342,2]
[319289190,1710640236427,-500.0,0.00015342,2]
[319289191,1710640236437,-500.0,0.00015342,2]
[319289192,1710640236447,-500.0,0.00015342,2]
[319289193,1710640236456,-500.0,0.00015342,2]
[319289194,1710640236466,-500.0,0.00015342,2]
[319289195,1710640236476,-500.0,0.00015342,2]
[319289196,1710640236487,-500.0,0.00015342,2]
[319289197,1710640236497,-500.74544064,0.00015342,2]
[319289198,1710640236507,-500.0,0.00015342,2]
[319289199,1710640236517,-500.0,0.00015342,2]
[319289200,1710640236527,-500.0,0.00015342,2]
[319289201,1710640236537,-500.0,0.00015342,2]
[319289202,1710640236547,-500.0,0.00015342,2]
[319289203,1710640236556,-500.0,0.00015342,2]
[319289204,1710640236566,-500.0,0.00015342,2]
[319289205,1710640236576,-500.0,0.00015342,2]
[319289206,1710640236586,-381.93267216,0.00015342,2]
[319289207,1710640236597,-500.0,0.00015342,2]
[319289208,1710640236606,-500.0,0.00015342,2]
[319289209,1710640236617,-500.0,0.00015342,2]
[319289210,1710640236627,-253.85240849,0.00015342,2]
[319289211,1710640236637,-517.11346109,0.00015342,2]
[319289212,1710640236647,-513.17931702,0.00015342,2]
[319289213,1710640236658,-627.63,0.00015342,2]
[319289214,1710640236668,-627.63,0.00015342,2]
[319289215,1710640236679,-627.63,0.00015342,2]
[319289216,1710640236689,-627.63,0.00015342,2]
[319289217,1710640237030,-627.63,0.00015342,2]
[319289218,1710640237040,-500.0,0.00015342,2]
[319289219,1710640237049,-500.77814882,0.00015342,2]
[319289220,1710640237058,-500.0,0.00015342,2]
[319289221,1710640237066,-500.0,0.00015342,2]
[319289222,1710640237075,-500.0,0.00015342,2]
[319289223,1710640237084,-500.0,0.00015342,2]
[319289224,1710640237093,-500.0,0.00015342,2]
[319289225,1710640237102,-500.0,0.00015342,2]
[319289226,1710640237111,-500.0,0.00015342,2]
[319289227,1710640237120,-500.0,0.00015342,2]
[319289228,1710640237130,-500.0,0.00015342,2]
[319289229,1710640237139,-518.73726916,0.00015342,2]
[319289230,1710640237149,-505.64933373,0.00015342,2]
[319289231,1710640237158,-516.99614584,0.00015342,2]
[319289232,1710640237167,-256.2004792,0.00015342,2]
[319289233,1710640237176,-303.03694192,0.00015342,2]
[319289234,1710640237186,-517.61681517,0.00015342,2]
[319289235,1710640237195,-500.0,0.00015342,2]
[319289236,1710640237204,-500.0,0.00015342,2]
[319289237,1710640237213,-500.0,0.00015342,2]
[319289238,1710640237222,-500.0,0.00015342,2]
[319289239,1710640237231,-582.38737332,0.00015342,2]
[319289240,1710640237240,-500.0,0.00015342,2]
[319289241,1710640237249,-500.0,0.00015342,2]
[319289242,1710640237259,-505.96982314,0.00015342,2]
[319289243,1710640237268,-520.79309136,0.00015342,2]
[319289244,1710640237277,-503.9029222,0.00015342,2]
[319289245,1710640237286,-509.30748642,0.00015342,2]
[319289246,1710640237295,-500.0,0.00015342,2]
[319289247,1710640237303,-500.0,0.00015342,2]
[319289248,1710640237312,-500.0,0.00015342,2]
[319289249,1710640237321,-500.0,0.00015342,2]
[319289250,1710640237330,-512.22140948,0.00015342,2]
[319289251,1710640237339,-517.7422614,0.00015342,2]
[319289252,1710640237348,-500.0,0.00015342,2]
[319289253,1710640237357,-500.0,0.00015342,2]
[319289254,1710640237366,-500.0,0.00015342,2]
[319289255,1710640237375,-344.8690381,0.00015342,2]
[319289256,1710640237383,-500.00176467,0.00015342,2]
[319289257,1710640237392,-500.0,0.00015342,2]
[319289258,1710640237402,-500.0,0.00015342,2]
[319289259,1710640237412,-500.0,0.00015342,2]
[319289260,1710640237421,-500.0,0.00015342,2]
[319289261,1710640237431,-500.0,0.00015342,2]
[319289262,1710640237440,-514.78262199,0.00015342,2]
[319289263,1710640237449,-516.88036488,0.00015342,2]
[319289264,1710640237458,-511.48069659,0.00015342,2]
[319289265,1710640237467,-500.0,0.00015342,2]
[319289266,1710640237476,-500.0,0.00015342,2]
[319289267,1710640237485,-500.0,0.00015342,2]
[319289268,1710640237494,-500.0,0.00015342,2]
[319289269,1710640237503,-500.0,0.00015342,2]
[319289270,1710640237512,-500.76327829,0.00015342,2]
[319289271,1710640237523,-500.0,0.00015342,2]
[319289272,1710640237532,-523.3940662,0.00015342,2]
[319289273,1710640237541,-500.0,0.00015342,2]
[319289274,1710640237550,-500.0,0.00015342,2]
[319289276,1710640237559,-502.37766267,0.00015342,2]
[319289278,1710640237568,-500.0,0.00015342,2]
[319289280,1710640237577,-510.45547266,0.00015342,2]
[319289282,1710640237586,-500.0,0.00015342,2]
[319289284,1710640237595,-500.65908399,0.00015342,2]
[319289286,1710640237604,-502.8679798,0.00015342,2]
[319289288,1710640237612,-500.0,0.00015342,2]
[319289290,1710640237621,-500.0,0.00015342,2]
[319289291,1710640237630,-608.23988839,0.00015342,2]
[319289293,1710640237639,-503.55886425,0.00015342,2]
[319289295,1710640237648,-500.0,0.00015342,2]
[319289296,1710640237658,-500.0,0.00015342,2]
[319289297,1710640237667,-500.0,0.00015342,2]
[319289299,1710640237676,-338.72681357,0.00015342,2]
[319289301,1710640237685,-500.0,0.00015342,2]
[319289302,1710640237695,-303.52681286,0.00015342,2]
[319289303,1710640237704,-500.0,0.00015342,2]
[319289304,1710640237713,-524.60237144,0.00015342,2]
[319289305,1710640237722,-584.24144404,0.00015342,2]
[319289306,1710640237731,-501.96289517,0.00015342,2]
[319289308,1710640237740,-500.0,0.00015342,2]
[319289310,1710640237749,-500.0,0.00015342,2]
[319289312,1710640237758,-501.65388233,0.00015342,2]
[319289314,1710640237768,-524.40049435,0.00015342,2]
[319289317,1710640237777,-500.0,0.00015342,2]